[Event "WYCC 2018 G18"]
[Site "Halkidiki"]
[Date "2018.10.28"]
[Round "9"]
[White "Limanovska, Elizabete"]
[Black "Nguyen, Hong Ngoc"]
[Result "1/2-1/2"]
[ECO "C10"]
[WhiteElo "2072"]
[BlackElo "1861"]
[Annotator "NA RC"]
[PlyCount "65"]
[EventDate "2018.10.20"]
[EventType "swiss"]
[EventCountry "GRE"]
[SourceTitle "playchess.com"]
[Source "ChessBase"]
[SourceQuality "1"]
[TimeControl "40/5400+30:1800+30"]

1. e4 {[%emt 0:00:00]} e6 {[%emt 0:00:00]} 2. d4 {[%emt 0:00:00]} d5 {[%emt 0:00:00]} 3. Nd2 {[%emt 0:00:00]} dxe4 {[%emt 0:00:02]} 4. Nxe4 {[%emt 0:00:00]} Nd7 {[%emt 0:00:05]} 5. Nf3 {[%emt 0:00:44]} Ngf6 {[%emt 0:00:33]} 6. Nxf6+ {[%emt 0:00:37]} Qxf6 {[%emt 0:01:56]} 7. Bg5 {[%emt 0:07:58]} Qf5 {[%emt 0:02:04]} 8. Bd3 {[%emt 0:02:24]} Qa5+ {[%emt 0:00:19]} 9. c3 {[%emt 0:03:14]} Bd6 {[%emt 0:02:36]} 10. O-O {[%emt 0:06:15]} c6 {[%emt 0:00:53]} 11. Re1 {[%emt 0:04:14]} h6 {[%emt 0:04:38]} 12. Bh4 {[%emt 0:01:18]} Nf6 {[%emt 0:04:29]} 13. Ne5 {[%emt 0:07:01]} Qc7 {[%emt 0:05:13]} 14. Qf3 {[%emt 0:09:53]} Be7 {[%emt 0:01:44]} 15. Rad1 {[%emt 0:04:04]} Bd7 {[%emt 0:01:50]} 16. c4 {[%emt 0:08:48]} Rf8 {[%emt 0:02:16]} 17. d5 {[%emt 0:07:27]} O-O-O {[%emt 0:23:10]} 18. Nxd7 {[%emt 0:00:59]} Rxd7 {[%emt 0:01:25]} 19. Bxf6 {[%emt 0:04:29]} Bxf6 {[%emt 0:00:24]} 20. dxc6 {[%emt 0:09:13]} Qxc6 {[%emt 0:00:37]} 21. Be4 {[%emt 0:01:11]} Rxd1 {[%emt 0:02:01]} 22. Rxd1 {[%emt 0:00:02]} Qc7 {[%emt 0:00:40]} 23. g3 {[%emt 0:04:46]} Rd8 {[%emt 0:01:12]} 24. Rxd8+ {[%emt 0:00:17]} Bxd8 {[%emt 0:00:10]} 25. b4 {[%emt 0:01:08]} f5 {[%emt 0:02:13]} 26. Bd3 {[%emt 0:00:35]} Qe5 {[%emt 0:02:02]} 27. Kg2 {[%emt 0:01:34]} Qd4 {[%emt 0:01:12]} 28. Qe2 {[%emt 0:01:33]} Kd7 {[%emt 0:00:37]} 29. a3 {[%emt 0:00:40]} a5 {[%emt 0:01:26]} 30. Bc2 {[%emt 0:02:21]} axb4 {[%emt 0:00:34]} 31. axb4 {[%emt 0:00:02]} Bc7 {[%emt 0:01:18]} 32. Ba4+ {[%emt 0:04:27] €} Ke7 {[%emt 0:00:25]} 33. Bc2 {[%emt 0:01:18]} 1/2-1/2

[Event "WYCC 2018 G18"]
[Site "Halkidiki"]
[Date "2018.10.28"]
[Round "9"]
[White "Vanduyfhuys, Daria"]
[Black "Martos Amiguet, Valentina"]
[Result "1-0"]
[ECO "D43"]
[WhiteElo "2058"]
[BlackElo "1775"]
[Annotator "NA"]
[PlyCount "131"]
[EventDate "2018.10.20"]
[EventType "swiss"]
[EventCountry "GRE"]
[SourceTitle "playchess.com"]
[Source "ChessBase"]
[SourceQuality "1"]
[TimeControl "40/5400+30:1800+30"]

1. d4 {[%emt 0:00:00]} d5 {[%emt 0:00:00]} 2. c4 {[%emt 0:00:00]} c6 {[%emt 0:00:00]} 3. Nc3 {[%emt 0:00:40]} Nf6 {[%emt 0:00:00]} 4. Nf3 {[%emt 0:00:05]} e6 {[%emt 0:00:00]} 5. Bg5 {[%emt 0:00:21]} h6 {[%emt 0:00:04]} 6. Bxf6 {[%emt 0:00:06]} Qxf6 {[%emt 0:00:07]} 7. e3 {[%emt 0:00:14]} g6 {[%emt 0:00:07]} 8. Rc1 {[%emt 0:01:25]} Bg7 {[%emt 0:01:40]} 9. Bd3 {[%emt 0:00:31]} O-O {[%emt 0:00:11]} 10. O-O {[%emt 0:00:08]} Nd7 {[%emt 0:00:35]} 11. e4 {[%emt 0:06:50]} dxc4 {[%emt 0:00:33]} 12. Bxc4 {[%emt 0:00:06]} b5 {[%emt 0:05:01]} 13. Bd3 {[%emt 0:04:12]} Bb7 {[%emt 0:00:41]} 14. e5 {[%emt 0:01:44]} Qe7 {[%emt 0:00:32]} 15. Ne4 {[%emt 0:02:00]} Rad8 {[%emt 0:10:16]} 16. Nd6 {[%emt 0:09:43]} Ba8 {[%emt 0:00:45]} 17. Be4 {[%emt 0:09:03]} c5 {[%emt 0:10:07]} 18. Bxa8 {[%emt 0:00:40]} Rxa8 {[%emt 0:02:32]} 19. Qe2 {[%emt 0:13:24]} cxd4 {[%emt 0:03:59]} 20. Nxb5 {[%emt 0:05:53]} d3 {[%emt 0:04:07]} 21. Qe3 {[%emt 0:05:41]} Qb4 {[%emt 0:03:18]} 22. a4 {[%emt 0:20:27]} a6 {[%emt 0:07:53]} 23. Nc7 {[%emt 0:01:43]} Rac8 {[%emt 0:01:13]} 24. Nxa6 {[%emt 0:01:20]} Qxa4 {[%emt 0:03:21]} 25. Qxd3 {[%emt 0:00:29]} Nxe5 {[%emt 0:02:55]} 26. Nxe5 {[%emt 0:00:04]} Bxe5 {[%emt 0:00:16]} 27. b4 {[%emt 0:04:44]} Ra8 {[%emt 0:08:41]} 28. b5 {[%emt 0:00:08]} Qa5 {[%emt 0:00:55]} 29. Qe2 {[%emt 0:02:37]} Bg7 {[%emt 0:00:26]} 30. g3 {[%emt 0:00:40]} Rfd8 {[%emt 0:02:37]} 31. Rfd1 {[%emt 0:00:18]} Qb6 {[%emt 0:03:09]} 32. Qf3 {[%emt 0:04:19]} Bd4 {[%emt 0:11:24]} 33. Rc7 {[%emt 0:01:28]} Rf8 {[%emt 0:01:00]} 34. Rb7 {[%emt 0:01:59]} Qd8 {[%emt 0:01:39]} 35. Kg2 {[%emt 0:00:29]} e5 {[%emt 0:02:14]} 36. Rc1 {[%emt 0:00:55]} Rc8 {[%emt 0:03:54]} 37. Rc6 {[%emt 0:00:16]} Qe8 {[%emt 0:03:42]} 38. Qd5 {[%emt 0:00:58]} Kh8 {[%emt 0:03:58]} 39. Rxc8 {[%emt 0:01:10]} Qxc8 {[%emt 0:00:10]} 40. Rxf7 {[%emt 0:00:00]} Rxf7 {[%emt 0:00:00]} 41. Qxf7 {[%emt 0:01:26]} Qa8+ {[%emt 0:02:48]} 42. Kg1 {[%emt 0:03:02]} Qe4 {[%emt 0:08:17]} 43. Nc7 {[%emt 0:02:53]} Qe1+ {[%emt 0:10:42]} 44. Kg2 {[%emt 0:00:06]} Qe4+ {[%emt 0:02:06]} 45. Qf3 {[%emt 0:00:17]} Qf5 {[%emt 0:01:26]} 46. Qxf5 {[%emt 0:01:06]} gxf5 {[%emt 0:00:05]} 47. Nd5 {[%emt 0:00:05]} Kg7 {[%emt 0:02:30]} 48. b6 {[%emt 0:00:05]} Kf7 {[%emt 0:00:14]} 49. b7 {[%emt 0:00:04]} Ba7 {[%emt 0:00:08]} 50. Nb4 {[%emt 0:00:06]} Bb8 {[%emt 0:00:40]} 51. Nc6 {[%emt 0:00:10]} Bc7 {[%emt 0:00:11]} 52. b8=Q {[%emt 0:00:20]} Bxb8 {[%emt 0:00:03]} 53. Nxb8 {[%emt 0:00:05]} Kg6 {[%emt 0:00:16]} 54. Nc6 {[%emt 0:00:25]} e4 {[%emt 0:00:10]} 55. Nd4 {[%emt 0:00:11]} Kg5 {[%emt 0:00:16]} 56. Ne6+ {[%emt 0:00:05]} Kg6 {[%emt 0:00:42]} 57. f3 {[%emt 0:00:41]} exf3+ {[%emt 0:00:10]} 58. Kxf3 {[%emt 0:00:04]} Kf6 {[%emt 0:00:14]} 59. Nd4 {[%emt 0:00:14]} Kg5 {[%emt 0:00:22]} 60. h4+ {[%emt 0:00:13]} Kg6 {[%emt 0:00:15]} 61. Kf4 {[%emt 0:00:05]} Kf6 {[%emt 0:00:15]} 62. Nxf5 {[%emt 0:00:05]} Kg6 {[%emt 0:00:09]} 63. g4 {[%emt 0:00:12]} h5 {[%emt 0:00:57]} 64. g5 {[%emt 0:00:07]} Kh7 {[%emt 0:00:11]} 65. Ke5 {[%emt 0:00:11]} Kg6 {[%emt 0:00:08]} 66. Ng3 {[%emt 0:00:07]} 1-0

[Event "WYCC 2018 G18"]
[Site "Halkidiki"]
[Date "2018.10.28"]
[Round "9"]
[White "Cvitan, Ena"]
[Black "Afonasieva, Anna"]
[Result "0-1"]
[ECO "D00"]
[WhiteElo "2034"]
[BlackElo "2245"]
[Annotator "NA"]
[PlyCount "80"]
[EventDate "2018.10.20"]
[EventType "swiss"]
[EventCountry "GRE"]
[SourceTitle "playchess.com"]
[Source "ChessBase"]
[SourceQuality "1"]
[TimeControl "40/5400+30:1800+30"]

1. d4 {[%emt 0:00:00]} d5 {[%emt 0:00:00]} 2. Bf4 {[%emt 0:01:01]} Nf6 {[%emt 0:00:00]} 3. e3 {[%emt 0:00:14]} c5 {[%emt 0:00:08]} 4. c3 {[%emt 0:00:18]} Nc6 {[%emt 0:00:21]} 5. Nd2 {[%emt 0:00:32]} g6 {[%emt 0:03:32]} 6. Ngf3 {[%emt 0:06:41]} Bg7 {[%emt 0:00:30]} 7. h3 {[%emt 0:10:13]} O-O {[%emt 0:00:20]} 8. Be2 {[%emt 0:00:25]} b6 {[%emt 0:01:52]} 9. O-O {[%emt 0:01:15]} Bb7 {[%emt 0:01:01]} 10. Re1 {[%emt 0:06:43]} Nd7 {[%emt 0:08:53]} 11. a4 {[%emt 0:09:51]} Re8 {[%emt 0:02:57]} 12. Qb3 {[%emt 0:05:26]} e6 {[%emt 0:07:47]} 13. Rad1 {[%emt 0:12:51]} Qe7 {[%emt 0:03:13]} 14. Qa2 {[%emt 0:03:18]} Rad8 {[%emt 0:13:12]} 15. Bc7 {[%emt 0:03:45]} Rc8 {[%emt 0:02:08]} 16. Bg3 {[%emt 0:00:20]} c4 {[%emt 0:12:51]} 17. Bf1 {[%emt 0:04:40]} f5 {[%emt 0:04:57]} 18. b3 {[%emt 0:04:41]} cxb3 {[%emt 0:01:17]} 19. Nxb3 {[%emt 0:00:28]} Nf6 {[%emt 0:01:49]} 20. Bh4 {[%emt 0:03:59]} Qd7 {[%emt 0:03:54]} 21. Bxf6 {[%emt 0:06:31]} Bxf6 {[%emt 0:00:05]} 22. a5 {[%emt 0:03:38]} g5 {[%emt 0:06:21]} 23. a6 {[%emt 0:01:38]} Ba8 {[%emt 0:00:05]} 24. Bb5 {[%emt 0:04:30]} Qg7 {[%emt 0:01:21]} 25. Qa4 {[%emt 0:03:11]} g4 {[%emt 0:04:02]} 26. hxg4 {[%emt 0:00:23]} fxg4 {[%emt 0:00:06]} 27. Ne5 {[%emt 0:00:41]} Bxe5 {[%emt 0:02:29]} 28. dxe5 {[%emt 0:00:04]} Rf8 {[%emt 0:02:05]} 29. Nd4 {[%emt 0:01:36]} g3 {[%emt 0:02:57]} 30. fxg3 {[%emt 0:01:06]} Qxg3 {[%emt 0:01:48]} 31. Re2 {[%emt 0:03:20]} Nxe5 {[%emt 0:01:23]} 32. Bd7 {[%emt 0:00:53]} Rc4 {[%emt 0:06:49]} 33. Bxe6+ {[%emt 0:00:09]} Kg7 {[%emt 0:00:06]} 34. Qa3 {[%emt 0:01:58]} Rxd4 {[%emt 0:01:05]} 35. Qe7+ {[%emt 0:00:01]} Rf7 {[%emt 0:00:07]} 36. Qxf7+ {[%emt 0:00:46]} Nxf7 {[%emt 0:00:03]} 37. Rxd4 {[%emt 0:00:31]} Ne5 {[%emt 0:00:28]} 38. Rf2 {[%emt 0:00:11]} Qxe3 {[%emt 0:00:41]} 39. Rdd2 {[%emt 0:01:07]} Nd3 {[%emt 0:00:57]} 40. Rde2 {[%emt 0:00:00]} Qc5 {[%emt 0:00:00]} 0-1

[Event "WYCC 2018 G18"]
[Site "Halkidiki"]
[Date "2018.10.28"]
[Round "9"]
[White "Bauyrzhan, Arnash"]
[Black "Tsivelekidou, Evgenia"]
[Result "1/2-1/2"]
[ECO "C55"]
[WhiteElo "2011"]
[BlackElo "1891"]
[Annotator "NA"]
[PlyCount "121"]
[EventDate "2018.10.20"]
[EventType "swiss"]
[EventCountry "GRE"]
[SourceTitle "playchess.com"]
[Source "ChessBase"]
[SourceQuality "1"]
[TimeControl "40/5400+30:1800+30"]

1. e4 {[%emt 0:00:00]} e5 {[%emt 0:00:00]} 2. Nf3 {[%emt 0:00:00]} Nc6 {[%emt 0:00:00]} 3. Bc4 {[%emt 0:00:13]} Nf6 {[%emt 0:00:00]} 4. d3 {[%emt 0:00:15]} Be7 {[%emt 0:00:22]} 5. O-O {[%emt 0:00:46]} O-O {[%emt 0:00:06]} 6. h3 {[%emt 0:01:41]} d6 {[%emt 0:00:07]} 7. a4 {[%emt 0:01:17]} Be6 {[%emt 0:00:17]} 8. Nbd2 {[%emt 0:01:15]} Qd7 {[%emt 0:00:55]} 9. Bxe6 {[%emt 0:00:34]} fxe6 {[%emt 0:01:47]} 10. Nc4 {[%emt 0:00:59]} Rae8 {[%emt 0:05:35]} 11. c3 {[%emt 0:01:07]} a5 {[%emt 0:02:24]} 12. Bd2 {[%emt 0:08:46]} Bd8 {[%emt 0:07:23]} 13. Qe2 {[%emt 0:01:42]} Qf7 {[%emt 0:03:41]} 14. b4 {[%emt 0:07:22]} b6 {[%emt 0:08:24]} 15. bxa5 {[%emt 0:02:15]} Nxa5 {[%emt 0:01:19]} 16. Nxa5 {[%emt 0:00:29]} bxa5 {[%emt 0:00:03]} 17. d4 {[%emt 0:02:15]} exd4 {[%emt 0:02:32]} 18. cxd4 {[%emt 0:07:48]} Nh5 {[%emt 0:12:06]} 19. Ra3 Nf4 {[%emt 0:00:08]} 20. Bxf4 {[%emt 0:03:43]} Qxf4 21. Nd2 d5 {[%emt 0:10:02]} 22. Rf3 {[%emt 0:05:22]} Qd6 23. Rxf8+ {[%emt 0:02:12]} Rxf8 {[%emt 0:02:45]} 24. Nb3 {[%emt 0:01:34]} e5 25. Rd1 {[%emt 0:10:42]} dxe4 {[%emt 0:15:46]} 26. dxe5 {[%emt 0:01:49]} Qxe5 {[%emt 0:00:51]} 27. Qc4+ {[%emt 0:00:29]} Kh8 {[%emt 0:00:33]} 28. Nc5 {[%emt 0:00:37]} Re8 {[%emt 0:01:25]} 29. Nxe4 {[%emt 0:05:52]} h6 {[%emt 0:01:35]} 30. Ng3 {[%emt 0:00:59]} Be7 {[%emt 0:02:30]} 31. Rd7 {[%emt 0:11:26]} Bd6 {[%emt 0:02:35]} 32. Rf7 {[%emt 0:01:12]} Qe1+ {[%emt 0:01:47]} 33. Kh2 {[%emt 0:00:52]} Qe6 {[%emt 0:01:14]} 34. Qxe6 {[%emt 0:02:42]} Rxe6 {[%emt 0:00:03]} 35. Rf3 {[%emt 0:04:27]} Re4 {[%emt 0:03:08]} 36. Ra3 {[%emt 0:01:30]} Rd4 {[%emt 0:01:55]} 37. Ra1 {[%emt 0:00:50]} Kg8 {[%emt 0:03:48]} 38. Kg1 {[%emt 0:00:24]} Bxg3 {[%emt 0:00:46]} 39. fxg3 {[%emt 0:00:02]} Rc4 {[%emt 0:02:04]} 40. Ra2 {[%emt 0:00:00]} Kf7 {[%emt 0:00:00]} 41. Kf2 {[%emt 0:03:09]} Ke6 {[%emt 0:03:02]} 42. Ke3 {[%emt 0:00:47]} Ke5 {[%emt 0:02:22]} 43. Kd3 {[%emt 0:00:31]} Kd5 {[%emt 0:01:01]} 44. g4 {[%emt 0:01:04]} Rb4 {[%emt 0:03:21]} 45. Kc3 {[%emt 0:01:11]} c5 {[%emt 0:01:37]} 46. Rd2+ {[%emt 0:02:42]} Rd4 {[%emt 0:02:37]} 47. Ra2 {[%emt 0:00:26]} c4 {[%emt 0:02:36]} 48. Rb2 {[%emt 0:02:54]} Rd3+ {[%emt 0:00:17]} 49. Kc2 {[%emt 0:00:02]} Rg3 {[%emt 0:02:14]} 50. Rb5+ {[%emt 0:09:18]} Kd4 {[%emt 0:00:05]} 51. Rxa5 {[%emt 0:00:20]} Rxg2+ {[%emt 0:00:06]} 52. Kb1 {[%emt 0:01:12]} Rg3 {[%emt 0:03:45]} 53. Ra7 {[%emt 0:01:58]} g5 {[%emt 0:02:41]} 54. a5 {[%emt 0:06:47]} Rxh3 {[%emt 0:01:36]} 55. Ra8 {[%emt 0:02:35]} Ra3 {[%emt 0:01:15]} 56. Kb2 {[%emt 0:01:06]} Ra4 {[%emt 0:00:36]} 57. a6 {[%emt 0:00:35]} Kc5 {[%emt 0:00:55]} 58. a7 {[%emt 0:00:32]} Kb6 {[%emt 0:00:21]} 59. Kc3 {[%emt 0:02:44]} Kb7 {[%emt 0:02:01]} 60. Rh8 {[%emt 0:00:14]} Kxa7 {[%emt 0:00:25]} 61. Rxh6 {[%emt 0:00:07]} 1/2-1/2

[Event "WYCC 2018 G18"]
[Site "Halkidiki"]
[Date "2018.10.28"]
[Round "9"]
[White "Li, Yilin"]
[Black "Salimova, Asal"]
[Result "1/2-1/2"]
[ECO "B06"]
[WhiteElo "1993"]
[BlackElo "1870"]
[Annotator "NA"]
[PlyCount "88"]
[EventDate "2018.10.20"]
[EventType "swiss"]
[EventCountry "GRE"]
[SourceTitle "playchess.com"]
[Source "ChessBase"]
[SourceQuality "1"]
[TimeControl "40/5400+30:1800+30"]

1. e4 g6 2. d4 Bg7 3. c4 d6 4. Nc3 e5 5. Nf3 Nd7 6. Be2 Ne7 7. O-O O-O 8. Rb1 a6 9. Be3 h6 10. Qd2 Kh7 11. dxe5 dxe5 12. Ne1 f5 13. f3 f4 14. Bf2 Nf6 15. Nd3 Be6 16. b3 g5 17. Rfd1 Ng6 18. Qc2 Qc8 19. Nc5 g4 20. Nd5 Rf7 21. Nxf6+ Bxf6 22. Nxe6 Qxe6 23. fxg4 Bh4 24. Rd3 Bxf2+ 25. Kxf2 Raf8 26. Ke1 Qe7 27. Kd2 Qc5 28. Bf3 Ne7 29. b4 Qf2+ 30. Kc1 Qg1+ 31. Kb2 Qb6 32. Ka1 Nc6 33. c5 Qa7 34. Qc3 Qa8 35. Bd1 Nd4 36. Bb3 Rg7 37. h3 Qe8 38. Rbd1 Re7 39. R1d2 Qg6 40. Rxd4 exd4 41. Qxd4 Qf6 42. Bd1 Kg7 43. Bf3 c6 44. Kb2 Rff7 1/2-1/2

[Event "WYCC 2018 G18"]
[Site "Halkidiki"]
[Date "2018.10.28"]
[Round "9"]
[White "Hamedi Nia, Vesal"]
[Black "Miller, Rachel"]
[Result "1-0"]
[ECO "A46"]
[WhiteElo "1987"]
[BlackElo "1859"]
[Annotator "NA"]
[PlyCount "101"]
[EventDate "2018.10.20"]
[EventType "swiss"]
[EventCountry "GRE"]
[SourceTitle "playchess.com"]
[Source "ChessBase"]
[SourceQuality "1"]
[TimeControl "40/5400+30:1800+30"]

1. d4 {[%emt 0:00:00]} Nf6 {[%emt 0:00:00]} 2. Nf3 {[%emt 0:00:02]} e6 {[%emt 0:00:00]} 3. c4 {[%emt 0:01:57]} d5 {[%emt 0:00:27]} 4. e3 {[%emt 0:01:59]} c5 {[%emt 0:03:07]} 5. Nc3 {[%emt 0:02:11]} cxd4 {[%emt 0:07:19]} 6. Nxd4 {[%emt 0:01:56]} a6 {[%emt 0:05:06]} 7. cxd5 {[%emt 0:04:48]} Nxd5 {[%emt 0:00:14]} 8. Be2 {[%emt 0:01:27]} Nxc3 {[%emt 0:05:33]} 9. bxc3 {[%emt 0:00:23]} e5 {[%emt 0:07:40]} 10. Nf3 {[%emt 0:02:01]} Qxd1+ {[%emt 0:00:06]} 11. Bxd1 {[%emt 0:00:56]} Nc6 {[%emt 0:05:18]} 12. Bb3 {[%emt 0:09:02]} f6 {[%emt 0:01:57]} 13. O-O {[%emt 0:03:37]} Bc5 {[%emt 0:06:57]} 14. Nd2 {[%emt 0:13:20]} Bf5 {[%emt 0:03:11]} 15. e4 {[%emt 0:01:52]} Bd7 {[%emt 0:06:05]} 16. Nc4 {[%emt 0:07:33]} b5 {[%emt 0:05:45]} 17. Ne3 {[%emt 0:00:24]} Ne7 {[%emt 0:05:09]} 18. Rd1 {[%emt 0:16:54]} O-O-O {[%emt 0:01:18]} 19. Nd5 {[%emt 0:04:30]} Nxd5 {[%emt 0:10:43]} 20. Bxd5 {[%emt 0:02:47]} Bc6 {[%emt 0:03:01]} 21. Be3 {[%emt 0:02:37]} Bxd5 {[%emt 0:02:23]} 22. exd5 {[%emt 0:00:10]} Bxe3 {[%emt 0:05:02]} 23. fxe3 {[%emt 0:00:03]} Rd6 {[%emt 0:02:41]} 24. a4 {[%emt 0:04:29]} Rhd8 {[%emt 0:00:25]} 25. e4 {[%emt 0:01:11]} Kb7 {[%emt 0:06:05]} 26. axb5 {[%emt 0:00:07]} axb5 {[%emt 0:00:04]} 27. Rdb1 {[%emt 0:06:22]} f5 {[%emt 0:02:16]} 28. Rxb5+ {[%emt 0:00:42]} Rb6 {[%emt 0:01:02]} 29. Rba5 {[%emt 0:00:37]} fxe4 {[%emt 0:00:52]} 30. Ra7+ {[%emt 0:02:46]} Kc8 {[%emt 0:01:38]} 31. Rxg7 {[%emt 0:00:35]} Rb8 {[%emt 0:01:48]} 32. c4 {[%emt 0:01:00]} e3 {[%emt 0:00:22]} 33. Re7 {[%emt 0:01:31]} e2 {[%emt 0:00:54]} 34. Rxe5 {[%emt 0:00:38]} Kd7 {[%emt 0:00:48]} 35. Rxe2 {[%emt 0:00:12]} Kd6 {[%emt 0:00:08]} 36. Re6+ {[%emt 0:00:08]} Kc5 {[%emt 0:00:12]} 37. Rc6+ {[%emt 0:00:08]} Kd4 {[%emt 0:00:17]} 38. Rd1+ {[%emt 0:00:01]} Kc3 {[%emt 0:00:33]} 39. d6 {[%emt 0:01:26]} Rb2 {[%emt 0:00:54]} 40. d7 {[%emt 0:00:00]} Kc2 {[%emt 0:00:00]} 41. Rcd6 {[%emt 0:05:05]} Kc3 {[%emt 0:01:50]} 42. c5 {[%emt 0:00:24]} h5 {[%emt 0:03:09]} 43. c6 {[%emt 0:00:09]} Rg8 {[%emt 0:03:18]} 44. g3 {[%emt 0:00:20]} h4 {[%emt 0:02:35]} 45. d8=Q {[%emt 0:00:15]} h3 {[%emt 0:02:04]} 46. Qf6+ {[%emt 0:01:47]} Kc4 {[%emt 0:01:46]} 47. Qxb2 {[%emt 0:00:15]} Rxg3+ {[%emt 0:00:39]} 48. hxg3 {[%emt 0:00:06]} h2+ {[%emt 0:00:04]} 49. Kxh2 {[%emt 0:00:03]} Kc5 {[%emt 0:00:09]} 50. c7 {[%emt 0:00:11]} Kc4 {[%emt 0:00:14]} 51. Rc1# 1-0

[Event "WYCC 2018 G18"]
[Site "Halkidiki"]
[Date "2018.10.28"]
[Round "9"]
[White "Nass, Sara"]
[Black "Ni Mhuireagain, Eibhia"]
[Result "1-0"]
[ECO "C88"]
[WhiteElo "1986"]
[BlackElo "1655"]
[Annotator "NA"]
[PlyCount "115"]
[EventDate "2018.10.20"]
[EventType "swiss"]
[EventCountry "GRE"]
[SourceTitle "playchess.com"]
[Source "ChessBase"]
[SourceQuality "1"]
[TimeControl "40/5400+30:1800+30"]

1. e4 e5 2. Nf3 Nc6 3. Bb5 a6 4. Ba4 Nf6 5. O-O Be7 6. Re1 b5 7. Bb3 d6 8. c3 Bg4 9. h3 Bxf3 10. Qxf3 O-O 11. d3 Na5 12. Bc2 c5 13. Nd2 Nd7 14. Nf1 Re8 15. Ne3 Bf8 16. Ng4 Qh4 17. Qf5 Qe7 18. Re3 g6 19. Rg3 Kh8 20. Qf3 Bg7 21. h4 Qxh4 22. Qxf7 Qe7 23. Qf3 Rf8 24. Qe2 Nf6 25. Bg5 Qe6 26. Bxf6 Bxf6 27. Ne3 Bh4 28. Rf3 Rxf3 29. gxf3 Rf8 30. Ng2 Qh3 31. Nxh4 Qxh4 32. Bd1 Qg5+ 33. Kf1 {[%emt 1:44:59]} h5 {[%emt 1:40:06]} 34. Qe3 {[%emt 0:00:17]} Qxe3 35. fxe3 h4 {[%emt 0:01:06]} 36. Kg2 {[%emt 0:00:23]} g5 {[%emt 0:00:48]} 37. Be2 {[%emt 0:01:01]} Nc6 {[%emt 0:00:54]} 38. Kh3 {[%emt 0:00:46]} Kh7 {[%emt 0:01:03]} 39. Rf1 {[%emt 0:01:04]} Nd8 {[%emt 0:02:35]} 40. f4 {[%emt 0:00:00]} exf4 {[%emt 0:00:00]} 41. exf4 {[%emt 0:01:32]} Ne6 {[%emt 0:05:53]} 42. fxg5 {[%emt 0:02:54]} Nxg5+ {[%emt 0:04:06]} 43. Kxh4 {[%emt 0:00:16]} Rg8 {[%emt 0:00:39]} 44. Bh5 {[%emt 0:04:48]} Ne6 {[%emt 0:02:40]} 45. Rf6 {[%emt 0:02:46]} Ng7 {[%emt 0:04:46]} 46. Bg6+ {[%emt 0:01:15]} Kh8 {[%emt 0:00:32]} 47. Bf7 {[%emt 0:02:37]} Ne8 {[%emt 0:00:30]} 48. Bxe8 {[%emt 0:00:14]} Rxe8 {[%emt 0:00:06]} 49. Rxd6 {[%emt 0:00:04]} c4 {[%emt 0:00:37]} 50. Kg4 cxd3 51. Kf4 a5 52. Rxd3 b4 53. cxb4 axb4 54. Rb3 Ra8 55. Rxb4 Rxa2 56. Rb7 Kg8 57. Kf5 Kf8 58. e5 1-0

[Event "WYCC 2018 G18"]
[Site "Halkidiki"]
[Date "2018.10.28"]
[Round "9"]
[White "Caballero Quijano, Mitzy Mishell"]
[Black "Jie, Tianhui"]
[Result "1/2-1/2"]
[ECO "A46"]
[WhiteElo "1956"]
[BlackElo "1849"]
[Annotator "NA"]
[PlyCount "68"]
[EventDate "2018.10.20"]
[EventType "swiss"]
[EventCountry "GRE"]
[SourceTitle "playchess.com"]
[Source "ChessBase"]
[SourceQuality "1"]
[TimeControl "40/5400+30:1800+30"]

1. d4 {[%emt 0:03:20]} Nf6 {[%emt 0:00:00]} 2. Nf3 {[%emt 0:00:06]} e6 {[%emt 0:00:00]} 3. g3 {[%emt 0:00:04]} b6 {[%emt 0:00:13]} 4. Bg2 {[%emt 0:00:07]} Bb7 {[%emt 0:00:10]} 5. O-O {[%emt 0:00:16]} c5 {[%emt 0:01:17]} 6. c4 {[%emt 0:00:21]} cxd4 {[%emt 0:01:01]} 7. Nxd4 {[%emt 0:00:09]} Bxg2 {[%emt 0:01:00]} 8. Kxg2 {[%emt 0:00:03]} d5 {[%emt 0:03:52]} 9. Qa4+ {[%emt 0:06:17]} Qd7 {[%emt 0:01:21]} 10. Nb5 {[%emt 0:03:45]} Nc6 {[%emt 0:01:09]} 11. cxd5 {[%emt 0:01:33]} exd5 {[%emt 0:01:22]} 12. Bf4 {[%emt 0:01:13]} Rc8 {[%emt 0:05:21]} 13. Nc7+ {[%emt 0:07:17]} Kd8 {[%emt 0:09:28]} 14. Rc1 {[%emt 0:03:27]} Bd6 {[%emt 0:07:45]} 15. Nb5 {[%emt 0:18:25]} Bxf4 {[%emt 0:01:13]} 16. Qxf4 {[%emt 0:00:13]} Ke7 {[%emt 0:02:42]} 17. Qe3+ {[%emt 0:03:19]} Kf8 {[%emt 0:01:08]} 18. Qa3+ {[%emt 0:00:25]} Kg8 {[%emt 0:01:49]} 19. Nd2 {[%emt 0:05:47]} g6 {[%emt 0:03:09]} 20. Nf3 {[%emt 0:01:17]} Kg7 {[%emt 0:00:46]} 21. Nd6 {[%emt 0:05:34]} Rc7 {[%emt 0:05:15]} 22. Rc2 {[%emt 0:01:13]} Rd8 {[%emt 0:02:06]} 23. Nb5 {[%emt 0:00:13]} Rcc8 {[%emt 0:02:29]} 24. Rac1 {[%emt 0:00:44]} Na5 {[%emt 0:04:42]} 25. Ne5 {[%emt 0:03:16]} Qf5 {[%emt 0:10:37]} 26. Rxc8 {[%emt 0:00:10]} Rxc8 {[%emt 0:07:45]} 27. Nd6 {[%emt 0:01:24]} Qxe5 {[%emt 0:02:51]} 28. Rxc8 {[%emt 0:00:40]} g5 {[%emt 0:05:36]} 29. Rc3 {[%emt 0:06:38]} Ne4 {[%emt 0:01:20]} 30. Nxe4 {[%emt 0:07:55]} Qxe4+ {[%emt 0:00:07]} 31. Kg1 {[%emt 0:01:32]} Qb1+ {[%emt 0:00:26]} 32. Kg2 {[%emt 0:00:06]} Qe4+ {[%emt 0:00:09]} 33. Kh3 g4+ 34. Kh4 Nc4 1/2-1/2